fUSD/lending_fUSD_20260214
["ID","MTS","AMOUNT","RATE_DAILY","PERIOD"]
[405347612,1771035995429,500.0,8.915e-05,2]
[405347613,1771035995486,1012.6792141,9.463e-05,2]
[405347614,1771036085912,502.84738561,8.915e-05,2]
[405347619,1771036168136,-180.79820712,0.00014034,2]
[405347630,1771036232048,-2403.39179288,0.00014034,2]
[405347631,1771036232058,-266.0,0.00014034,2]
[405347632,1771036232068,-250.0,0.00014275,2]
[405347633,1771036232077,-519.0,0.000144,5]
[405347634,1771036232087,-166.12446682,0.00014517,2]
[405347635,1771036232098,-250.0,0.00015437,2]
[405347637,1771036232108,-500.0,0.00015437,2]
[405347638,1771036232118,-250.0,0.00015437,2]
[405347639,1771036232128,-1200.0,0.00015609,2]
[405347640,1771036232137,-300.0,0.00015609,2]
[405347641,1771036232146,-3019.215357,0.0001561,2]
[405347642,1771036232196,-1000.0,0.0001561,2]
[405347652,1771036238022,-179766.20078018,0.0001561,2]
[405347653,1771036238033,-255.61,0.00015655,2]
[405347654,1771036238043,-213.727019,0.00016,2]
[405347655,1771036238054,-200.0,0.00016195,2]
[405347656,1771036238064,-5098.5552238,0.000162,5]
[405347657,1771036238077,-166.12446681,0.00016309,2]
[405347658,1771036238087,-217.17970298,0.000164,2]
[405347659,1771036238096,-500.0,0.000164,2]
[405347660,1771036238107,-500.0,0.000164,2]
[405347661,1771036238116,-500.0,0.000164,2]
[405347662,1771036238126,-500.0,0.000164,2]
[405347663,1771036238136,-500.0,0.000164,2]
[405347664,1771036238146,-500.0,0.000164,2]
[405347665,1771036238156,-521.39069403,0.000164,2]
[405347666,1771036238166,-200.0,0.000164,2]
[405347667,1771036238175,-500.0,0.000164,2]
[405347668,1771036238188,-527.2622972,0.000164,2]
[405347669,1771036238199,-151.0,0.000164,2]
[405347670,1771036238210,-206.08418332,0.000164,2]
[405347671,1771036238220,-173.43456991,0.00016401,2]
[405347672,1771036238231,-9999.99,0.00016408,2]
[405347673,1771036238241,-999.99,0.00016408,2]
[405347674,1771036238251,-349.52,0.00016408,2]
[405347675,1771036238263,-150.99,0.00016408,2]
[405347676,1771036238273,-4999.99,0.00016408,2]
[405347677,1771036238283,-1184.5,0.00016409,2]
[405347678,1771036238297,-311.39,0.00016409,2]
[405347679,1771036238306,-9999.99,0.00016409,2]
[405347680,1771036238316,-14629.91,0.00016409,2]
[405347681,1771036238326,-1439.63,0.00016409,2]
[405347682,1771036238336,-570.1,0.00016409,2]
[405347683,1771036238346,-2450.0,0.0001641,2]
[405347685,1771036238358,-1288.0,0.0001641,2]
[405347688,1771036238368,-255.61,0.00016525,2]
[405347689,1771036238378,-213.64,0.00017041,2]
[405347690,1771036238388,-646.15,0.00017128,2]
[405347691,1771036238399,-255.61,0.00017395,2]
[405347692,1771036238412,-1040.08469311,0.0001764,2]
[405347693,1771036238422,-783.98632119,0.000177,2]
[405347694,1771036238433,-1000.0,0.00017799,2]
[405347695,1771036238443,-3131.74369042,0.000178,2]
[405347696,1771036238454,-1190.566,0.0001782,2]
[405347697,1771036238463,-896.52239,0.0001782,2]
[405347698,1771036238473,-896.5224,0.0001782,2]
[405347699,1771036238485,-9221.779,0.0001784,2]
[405347700,1771036238495,-6179.8119,0.0001784,2]
[405347701,1771036238506,-2500.0,0.0001784,2]
[405347702,1771036238515,-200.0,0.00017855,2]
[405347703,1771036238525,-200.0,0.00017856,2]
[405347704,1771036238534,-1003.68191037,0.0001786,2]
[405347705,1771036238544,-5656.2394484,0.00017897,2]
[405347706,1771036238553,-539.65685628,0.000179,2]
[405347707,1771036238563,-3227.87969298,0.000179,2]
[405347708,1771036238574,-411.38292716,0.000179,2]
[405347709,1771036238584,-5294.39530924,0.000179,2]
[405347710,1771036238594,-360.01633074,0.000179,3]
[405347711,1771036238604,-1684.8133588,0.000179,2]
[405347712,1771036238615,-1296.18540746,0.000179,2]
[405347713,1771036238625,-1407.32322262,0.000179,2]
[405347714,1771036238635,-151.0,0.00017937,2]
[405347715,1771036238645,-500.0,0.00017939,2]
[405347716,1771036238656,-500.0,0.00017939,2]
[405347717,1771036238666,-500.0,0.00017939,2]
[405347718,1771036238675,-500.0,0.00017939,2]
[405347719,1771036238685,-1965.27,0.00017939,2]
[405347720,1771036238694,-500.0,0.00017939,2]
[405347721,1771036238704,-500.0,0.00017939,2]
[405347722,1771036238713,-500.0,0.00017939,2]
[405347723,1771036238723,-500.0,0.00017939,2]
[405347724,1771036238732,-500.0,0.00017939,2]
[405347725,1771036238742,-500.0,0.00017939,2]
[405347726,1771036238752,-500.0,0.00017939,2]
[405347727,1771036238762,-301.54226181,0.00017939,2]
[405347728,1771036238771,-500.0,0.00017939,2]
[405347729,1771036238782,-500.0,0.00017939,2]
[405347730,1771036238791,-500.0,0.00017939,2]
[405347731,1771036238802,-500.0,0.00017939,2]
[405347732,1771036238812,-221204.9870989,0.0001794,2]
[405347733,1771036238822,-151.0,0.00017997,2]
[405347734,1771036238831,-500.0,0.00017999,2]
[405347735,1771036238841,-500.0,0.00017999,3]
[405347736,1771036238851,-500.0,0.00017999,4]
[405347737,1771036238860,-500.0,0.00017999,5]
[405347738,1771036238880,-500.0,0.00017999,6]
[405347739,1771036238891,-500.0,0.00017999,7]
[405347740,1771036238902,-500.0,0.00017999,8]
[405347741,1771036238912,-262.65302019,0.00017999,9]
[405347742,1771036238923,-642.82454239,0.00017999,2]
[405347743,1771036238933,-505.994553,0.00017999,2]
[405347744,1771036238943,-500.0,0.00017999,2]
[405347745,1771036238953,-500.0,0.00017999,2]
[405347746,1771036238964,-500.0,0.00017999,2]
[405347747,1771036238974,-500.0,0.00017999,2]
[405347748,1771036238984,-500.0,0.00017999,2]
[405347749,1771036238996,-500.0,0.00017999,2]
[405347750,1771036239007,-180.13,0.00017999,2]
[405347751,1771036239018,-151.62,0.00017999,2]
[405347752,1771036239029,-300.0,0.00017999,2]
[405347753,1771036239039,-1965.27,0.00017999,2]
[405347754,1771036239049,-1965.27,0.00017999,2]
[405347755,1771036239060,-1965.27,0.00017999,2]
[405347756,1771036239071,-478.62468269,0.00017999,2]
[405347757,1771036239081,-579.85,0.00017999,2]
[405347758,1771036239092,-500.0,0.00017999,2]
[405347759,1771036239103,-553.35075772,0.00017999,2]
[405347760,1771036239114,-500.0,0.00017999,2]
[405347761,1771036239124,-500.0,0.00017999,2]
[405347762,1771036239135,-500.0,0.00017999,2]
[405347763,1771036239145,-500.0,0.00017999,2]
[405347764,1771036239156,-223.20214818,0.00017999,2]
[405347765,1771036239166,-649.58784747,0.00017999,2]
[405347766,1771036239176,-500.0,0.00017999,2]
[405347767,1771036239189,-500.0,0.00017999,2]
[405347768,1771036239200,-500.0,0.00017999,2]
[405347769,1771036239209,-500.0,0.00017999,2]
[405347770,1771036239219,-500.0,0.00017999,2]
[405347771,1771036239230,-500.0,0.00017999,2]
[405347772,1771036239240,-500.0,0.00017999,2]
[405347773,1771036239250,-500.0,0.00017999,2]
[405347774,1771036239260,-500.0,0.00017999,2]
[405347775,1771036239272,-500.0,0.00017999,2]
[405347776,1771036239281,-549.75517939,0.00017999,2]
[405347777,1771036239291,-613.69428065,0.00017999,2]
[405347778,1771036239301,-500.0,0.00017999,2]
[405347779,1771036239312,-500.0,0.00017999,2]
[405347780,1771036239322,-500.0,0.00017999,2]
[405347781,1771036239331,-500.0,0.00017999,2]
[405347782,1771036239340,-500.0,0.00017999,2]
[405347783,1771036239350,-500.0,0.00017999,2]
[405347784,1771036239360,-600.0,0.00017999,2]
[405347785,1771036239369,-500.0,0.00017999,2]
[405347786,1771036239379,-500.0,0.00017999,2]
[405347787,1771036239388,-389.58599646,0.00017999,2]
[405347788,1771036239397,-500.0,0.00017999,2]
[405347789,1771036239407,-500.0,0.00017999,2]
[405347790,1771036239416,-500.0,0.00017999,2]
[405347791,1771036239426,-4770.0,0.00018,2]
[405347792,1771036239435,-365464.97149126,0.00018,2]
[405347793,1771036239462,-740.72275404,0.00018,2]
[405347794,1771036239474,-640.69,0.00018,2]
[405347799,1771036240201,-432.56378941,0.00018,2]
[405347800,1771036240362,-782.57676608,0.00018,2]
[405347843,1771036245891,-1337.0,0.0001641,2]
[405347844,1771036245901,-4825.89999998,0.00018,2]
[405347845,1771036245946,-6653.84323262,0.00018,2]
[405347846,1771036246001,-300.0,0.00018,2]
[405347847,1771036246110,-180.89126236,0.000179,2]
[405347848,1771036246119,-1551.07646764,0.00018,2]
[405347873,1771036290997,182.10282002,8.915e-05,2]
[405347886,1771037059461,150.09,0.00011711,2]
[405347887,1771037059658,150.09,0.00012715,2]
[405347896,1771037408266,4038.925866,7.945e-05,2]
[405347908,1771037432090,-263.0,0.00013718,2]
[405347909,1771037432101,-82.51780687,0.00013718,2]
[405347910,1771037432148,-67.57219313,0.00013718,2]
[405347911,1771037432158,-150.09,0.00014722,2]
[405347912,1771037432168,-250.0,0.00015,2]
[405347913,1771037432178,-304.22484288,0.0001509,2]
[405347914,1771037432187,-150.09,0.00015726,2]
[405347915,1771037432197,-170.92,0.00016208,2]
[405347916,1771037432206,-173.43456991,0.00016405,2]
[405347917,1771037432216,-300.0,0.00016409,2]
[405347918,1771037432226,-937.12969468,0.00016409,2]
[405347919,1771037432238,-262.87030532,0.00016409,2]
[405347920,1771037432248,-269.95655149,0.0001641,2]
[405347922,1771037432264,-1018.04344851,0.0001641,2]
[405347924,1771037432273,-1337.0,0.0001641,2]
[405347926,1771037432283,-3489.0,0.0001641,2]
[405347928,1771037432292,-617.0,0.0001641,2]
[405347930,1771037432302,-5969.0,0.0001641,2]
[405347932,1771037432311,-2450.0,0.0001641,2]
[405347934,1771037432321,-500.0,0.00016542,2]
[405347936,1771037432331,-1000.0,0.00016594,2]
[405347938,1771037432340,-150.09,0.0001673,2]
[405347939,1771037432350,-3240.0,0.00016798,2]
[405347941,1771037432360,-3364.18,0.00016934,2]
[405347943,1771037432369,-160.08,0.00016956,2]
[405347945,1771037432379,-200.0,0.00017029,2]
[405347947,1771037432388,-150.0,0.00017067,2]
[405347949,1771037432398,-500.0,0.00017067,2]
[405347952,1771037432408,-297.3,0.00017067,2]
[405347953,1771037432417,-9999.99,0.00017067,2]
[405347955,1771037432426,-150.99,0.00017067,2]
[405347957,1771037432435,-151.0,0.00017099,2]
[405347959,1771037432444,-151.0,0.00017154,2]
[405347960,1771037432453,-151.0,0.00017209,2]
[405347962,1771037432462,-258.94724428,0.00017264,2]
[405347964,1771037432472,-693.3897954,0.0001764,2]
[405347966,1771037432481,-166.66,0.00017703,2]
[405347967,1771037432490,-160.08,0.00017804,2]
[405347969,1771037432499,-952.453,0.0001782,2]
[405347970,1771037432509,-222.22222,0.0001782,2]
[405347971,1771037432523,-222.22222,0.0001782,2]
[405347972,1771037432532,-4926.5975,0.0001784,2]
[405347973,1771037432542,-1000.0,0.0001784,2]
[405347974,1771037432551,-200.0,0.00017856,2]
[405347975,1771037432563,-151.0,0.00017889,2]
[405347976,1771037432574,-151.0,0.00017889,2]
[405347977,1771037432584,-151.0,0.00017889,2]
[405347978,1771037432594,-151.0,0.00017889,2]
[405347979,1771037432607,-151.0,0.00017889,2]
[405347980,1771037432616,-151.0,0.00017889,2]
[405347981,1771037432625,-151.0,0.00017889,2]
[405347982,1771037432635,-151.0,0.00017889,2]
[405347983,1771037432644,-500.0,0.00017889,2]
[405347984,1771037432654,-151.0,0.00017889,2]
[405347985,1771037432664,-500.0,0.00017889,2]
[405347986,1771037432673,-151.0,0.00017889,2]
[405347987,1771037432683,-500.0,0.00017889,2]
[405347988,1771037432692,-151.0,0.00017889,2]
[405347989,1771037432703,-500.0,0.00017889,2]
[405347990,1771037432713,-151.0,0.00017889,2]
[405347991,1771037432722,-500.0,0.00017889,2]
[405347992,1771037432732,-151.0,0.00017889,2]
[405347993,1771037432742,-500.0,0.00017889,2]
[405347994,1771037432751,-500.0,0.00017889,2]
[405347995,1771037432761,-151.0,0.00017889,2]
[405347996,1771037432770,-500.0,0.00017889,2]
[405347997,1771037432779,-500.0,0.00017889,2]
[405347998,1771037432789,-151.0,0.00017889,2]
[405347999,1771037432798,-500.0,0.00017889,2]
[405348000,1771037432808,-500.0,0.00017889,2]
[405348001,1771037432818,-151.0,0.00017889,2]
[405348002,1771037432828,-500.0,0.00017889,2]
[405348003,1771037432837,-500.0,0.00017889,2]
[405348004,1771037432850,-151.0,0.00017889,2]
[405348005,1771037432860,-153.80441819,0.00017889,2]
[405348006,1771037432871,-5090.61550356,0.00017897,2]
[405348007,1771037432881,-2500.0,0.00017899,2]
[405348008,1771037433085,-710.92649956,0.000179,2]
[405348009,1771037433095,-462.56301966,0.000179,2]
[405348010,1771037433104,-2905.0917237,0.000179,2]
[405348011,1771037433114,-274.25528478,0.000179,2]
[405348012,1771037433124,-3023.51053984,0.000179,2]
[405348013,1771037433133,-240.01088716,0.000179,3]
[405348014,1771037433143,-180.89126234,0.000179,2]
[405348015,1771037433153,-1446.1430564,0.000179,2]
[405348016,1771037433163,-10000.0,0.000179,2]
[405348017,1771037433172,-3785.8670398,0.000179,2]
[405348018,1771037433181,-642.82454239,0.00017939,2]
[405348019,1771037433190,-505.994553,0.00017939,2]
[405348020,1771037433199,-500.0,0.00017939,2]
[405348021,1771037433209,-180.13,0.00017989,2]
[405348022,1771037433218,-205.26220082,0.0001799,2]
[405348023,1771037433227,-2572.2012087,0.00017995,2]
[405348024,1771037433236,-37676.5469859,0.00017995,2]
[405348025,1771037433245,-15347.7075298,0.00017995,2]
[405348026,1771037433255,-2480.0733149,0.00017995,2]
[405348027,1771037433264,-68268.9430702,0.00017995,2]
[405348028,1771037433273,-877.3737928,0.00017995,2]
[405348029,1771037433282,-151.0,0.00017996,2]
[405348030,1771037433292,-151.0,0.00017997,2]
[405348031,1771037433301,-478.62468269,0.00017998,2]
[405348032,1771037433310,-579.85,0.00017998,2]
[405348033,1771037433319,-1883.39,0.00017998,2]
[405348034,1771037433328,-500.0,0.00017999,2]
[405348035,1771037433338,-500.0,0.00017999,2]
[405348036,1771037433347,-500.0,0.00017999,2]
[405348037,1771037433356,-500.0,0.00017999,2]
[405348038,1771037433366,-500.0,0.00017999,2]
[405348039,1771037433375,-500.0,0.00017999,2]
[405348040,1771037433385,-500.0,0.00017999,2]
[405348041,1771037433395,-500.0,0.00017999,2]
[405348042,1771037433404,-500.0,0.00017999,2]
[405348043,1771037433414,-500.0,0.00017999,2]
[405348044,1771037433423,-500.0,0.00017999,2]
[405348045,1771037433432,-500.0,0.00017999,2]
[405348046,1771037433442,-500.0,0.00017999,2]
[405348047,1771037433452,-500.0,0.00017999,2]
[405348048,1771037433461,-500.0,0.00017999,2]
[405348049,1771037433471,-301.6781247,0.00017999,2]
[405348050,1771037433480,-300.0,0.00017999,2]
[405348051,1771037433490,-677.64345767,0.00017999,2]
[405348052,1771037433500,-500.0,0.00017999,2]
[405348053,1771037433510,-500.0,0.00017999,3]
[405348054,1771037433521,-500.0,0.00017999,4]
[405348055,1771037433531,-500.0,0.00017999,5]
[405348056,1771037433540,-500.0,0.00017999,6]
[405348057,1771037433550,-500.0,0.00017999,7]
[405348058,1771037433560,-500.0,0.00017999,8]
[405348059,1771037433569,-500.0,0.00017999,9]
[405348060,1771037433578,-262.65302019,0.00017999,10]
[405348061,1771037433589,-500.0,0.00017999,2]
[405348062,1771037433598,-500.0,0.00017999,2]
[405348063,1771037433608,-500.0,0.00017999,2]
[405348064,1771037433618,-500.0,0.00017999,2]
[405348065,1771037433628,-500.0,0.00017999,2]
[405348066,1771037433638,-500.0,0.00017999,2]
[405348067,1771037433647,-500.0,0.00017999,2]
[405348068,1771037433657,-500.0,0.00017999,2]
[405348069,1771037433668,-500.0,0.00017999,2]
[405348070,1771037433677,-500.0,0.00017999,2]
[405348071,1771037433687,-500.0,0.00017999,2]
[405348072,1771037433697,-164.72458471,0.00017999,2]
[405348073,1771037433707,-300.0,0.00017999,2]
[405348074,1771037433717,-300.0,0.00017999,2]
[405348075,1771037433726,-1883.39,0.00017999,2]
[405348076,1771037433735,-1883.39,0.00017999,2]
[405348077,1771037433744,-1883.39,0.00017999,2]
[405348078,1771037433754,-1883.39,0.00017999,2]
[405348079,1771037433764,-1883.39,0.00017999,2]
[405348080,1771037433774,-1883.39,0.00017999,2]
[405348081,1771037433783,-1883.39,0.00017999,2]
[405348082,1771037433793,-1883.39,0.00017999,2]
[405348083,1771037433803,-1883.39,0.00017999,2]
[405348084,1771037433813,-1883.39,0.00017999,2]
[405348085,1771037433823,-1883.39,0.00017999,2]
[405348086,1771037433833,-1883.39,0.00017999,2]
[405348087,1771037433842,-1883.39,0.00017999,2]
[405348088,1771037433852,-1883.39,0.00017999,2]
[405348089,1771037433862,-1883.39,0.00017999,2]
[405348090,1771037433872,-1883.39,0.00017999,2]
[405348091,1771037433882,-533.50469576,0.00017999,2]
[405348092,1771037433891,-553.35075772,0.00017999,2]
[405348093,1771037433901,-500.0,0.00017999,2]
[405348094,1771037433910,-549.75517939,0.00017999,2]
[405348095,1771037433920,-500.0,0.00017999,2]
[405348096,1771037433929,-500.0,0.00017999,2]
[405348097,1771037433939,-500.0,0.00017999,2]
[405348098,1771037433949,-500.0,0.00017999,2]
[405348099,1771037433958,-500.0,0.00017999,2]
[405348100,1771037433968,-500.0,0.00017999,2]
[405348101,1771037433978,-500.0,0.00017999,2]
[405348102,1771037433988,-500.0,0.00017999,2]
[405348103,1771037433997,-500.0,0.00017999,2]
[405348104,1771037434007,-500.0,0.00017999,2]
[405348105,1771037434016,-500.0,0.00017999,2]
[405348106,1771037434026,-500.0,0.00017999,2]
[405348107,1771037434035,-500.0,0.00017999,2]
[405348108,1771037434044,-500.0,0.00017999,2]
[405348109,1771037434054,-573.69428065,0.00017999,2]
[405348110,1771037434063,-500.0,0.00017999,2]
[405348111,1771037434072,-500.0,0.00017999,2]
[405348112,1771037434082,-500.0,0.00017999,2]
[405348113,1771037434092,-500.0,0.00017999,2]
[405348114,1771037434102,-500.0,0.00017999,2]
[405348115,1771037434111,-500.0,0.00017999,2]
[405348116,1771037434120,-500.0,0.00017999,2]
[405348117,1771037434129,-600.0,0.00017999,2]
[405348118,1771037434139,-500.0,0.00017999,2]
[405348119,1771037434148,-223.20214818,0.00017999,2]
[405348120,1771037434157,-500.0,0.00017999,2]
[405348121,1771037434167,-649.58784747,0.00017999,2]
[405348122,1771037434176,-4771.0,0.00018,2]
[405348123,1771037434186,-171487.58169452,0.00018,2]
[405348124,1771037434195,-151.77370153,0.00018,2]
[405348125,1771037434204,-181.0,0.00018,2]
[405348126,1771037434213,-242.17744532,0.00018,2]
[405348127,1771037434223,-34991.82929159,0.00018,2]
[405348128,1771037434236,-67411.81224122,0.00018,2]
[405348129,1771037434247,-3178.29500462,0.00018,2]
[405348130,1771037434258,-3528.14577167,0.00018,2]
[405348147,1771037438275,-1223.731,0.0001641,2]
[405348148,1771037438284,-88.50500842,0.000179,2]
[405348164,1771037440159,-332.66640938,0.000179,2]
[405348192,1771038007906,2568.808647,7.945e-05,2]
[405348204,1771038632231,-2347.15,0.00014192,2]
[405348205,1771038632242,-267.0,0.00014192,2]
[405348206,1771038632251,-192.99382523,0.000149,2]
[405348207,1771038632262,-1654.85,0.00015,2]
[405348208,1771038632272,-250.0,0.00015611,2]
[405348209,1771038632282,-300.0,0.00015611,2]
[405348210,1771038632292,-300.0,0.00015653,2]
[405348211,1771038632301,-300.0,0.00015653,2]
[405348212,1771038632310,-300.0,0.00015653,2]
[405348213,1771038632319,-1200.0,0.00015653,2]
[405348214,1771038632328,-617.0,0.00015655,2]
[405348215,1771038632337,-1337.0,0.00015655,2]
[405348216,1771038632346,-1288.0,0.00015655,2]
[405348217,1771038632355,-3489.0,0.00015655,2]
[405348218,1771038632364,-1753.34396086,0.00015655,2]
[405348219,1771038632375,-975.17458624,0.00015655,2]
[405348222,1771038632409,-688.03199954,0.00015655,2]
[405348239,1771038638352,-2552.44945336,0.00015655,2]
[405348240,1771038638362,-1544.98751207,0.00015655,2]
[405348241,1771038638411,-905.01248793,0.00015655,2]
[405348242,1771038638420,-641.56321973,0.00016896,2]
[405348243,1771038638515,-30000.08678027,0.00016896,2]
[405348244,1771038638525,-210.34,0.00017016,2]
[405348245,1771038638534,-742.96,0.00017033,2]
[405348246,1771038638544,-420.0,0.0001712,2]
[405348247,1771038638554,-166.66,0.00017414,2]
[405348248,1771038638563,-173.43456991,0.00017567,2]
[405348249,1771038638572,-269.67,0.000176,2]
[405348264,1771038638790,-462.2598636,0.0001764,2]
[405348266,1771038638800,-150.99,0.0001764,2]
[405348268,1771038638809,-597.68159,0.0001782,2]
[405348270,1771038638819,-597.6816,0.0001782,2]
[405348272,1771038638829,-200.0,0.00017856,2]
[405348274,1771038638838,-200.0,0.00017889,2]
[405348276,1771038638847,-2989.91785173,0.00017894,2]
[405348278,1771038638857,-4581.55395315,0.00017894,2]
[405348279,1771038638868,-1000.0,0.00017895,2]
[405348281,1771038638876,-761.962,0.00017897,2]
[405348284,1771038638885,-500.0,0.00017899,2]
[405348285,1771038638893,-500.0,0.00017899,2]
[405348287,1771038638901,-500.0,0.00017899,2]
[405348289,1771038638908,-509.68,0.00017899,2]
[405348291,1771038638916,-568.74119964,0.000179,2]
[405348293,1771038638926,-10000.0,0.000179,2]
[405348295,1771038638934,-396.48258828,0.000179,2]
[405348297,1771038638942,-182.83685652,0.000179,2]
[405348299,1771038638950,-1240.2291504,0.000179,2]
[405348301,1771038638963,-236.32376327,0.00017935,2]
[405348303,1771038638972,-200.0,0.00017937,2]
[405348305,1771038638982,-210.34,0.00017961,2]
[405348308,1771038638991,-166.66,0.00017989,2]
[405348310,1771038639001,-197.46822297,0.0001799,2]
[405348312,1771038639011,-151.0,0.00017991,2]
[405348313,1771038639020,-151.0,0.00017991,2]
[405348315,1771038639030,-151.0,0.00017991,2]
[405348318,1771038639039,-500.0,0.00017993,2]
[405348320,1771038639049,-500.0,0.00017993,2]
[405348321,1771038639059,-500.0,0.00017993,2]
[405348323,1771038639068,-174.48055248,0.00017993,2]
[405348325,1771038639077,-500.0,0.00017993,2]
[405348327,1771038639087,-500.0,0.00017993,2]
[405348329,1771038639096,-500.0,0.00017993,2]
[405348331,1771038639105,-500.0,0.00017993,2]
[405348333,1771038639115,-500.0,0.00017993,2]
[405348335,1771038639124,-500.0,0.00017993,2]
[405348338,1771038639134,-500.0,0.00017993,2]
[405348340,1771038639143,-500.0,0.00017993,2]
[405348341,1771038639152,-500.0,0.00017993,2]
[405348344,1771038639162,-500.0,0.00017993,2]
[405348345,1771038639171,-500.0,0.00017993,2]
[405348347,1771038639180,-500.0,0.00017993,2]
[405348350,1771038639190,-500.0,0.00017993,2]
[405348352,1771038639199,-500.0,0.00017993,2]
[405348353,1771038639209,-746.23,0.00017993,2]
[405348356,1771038639218,-159246.60039415,0.00017994,2]
[405348359,1771038639245,-662.57138417,0.00017994,2]
[405348362,1771038639256,-4852.39229244,0.00017994,2]
[405348364,1771038639268,-166894.85829994,0.00017994,2]
[405348366,1771038639277,-11142.6494319,0.00017994,2]
[405348368,1771038639286,-8077.9634002,0.00017994,2]
[405348370,1771038639296,-3290.5940067,0.00017994,2]
[405348372,1771038639306,-151.0,0.00017997,2]
[405348374,1771038639315,-300.0,0.00017999,2]
[405348376,1771038639324,-666.0,0.00017999,2]
[405348378,1771038639333,-300.0,0.00017999,2]
[405348380,1771038639343,-155.0,0.00017999,2]
[405348382,1771038639353,-746.23,0.00017999,2]
[405348384,1771038639362,-746.23,0.00017999,2]
[405348386,1771038639371,-746.23,0.00017999,2]
[405348388,1771038639380,-746.23,0.00017999,2]
[405348390,1771038639390,-746.23,0.00017999,2]
[405348392,1771038639399,-746.23,0.00017999,2]
[405348394,1771038639408,-746.23,0.00017999,2]
[405348396,1771038639417,-746.23,0.00017999,2]
[405348398,1771038639427,-746.23,0.00017999,2]
[405348400,1771038639436,-746.23,0.00017999,2]
[405348402,1771038639445,-746.23,0.00017999,2]
[405348404,1771038639454,-746.23,0.00017999,2]
[405348406,1771038639463,-746.23,0.00017999,2]
[405348408,1771038639472,-746.23,0.00017999,2]
[405348410,1771038639481,-746.23,0.00017999,2]
[405348412,1771038639491,-438.17653057,0.00017999,2]
[405348414,1771038639500,-500.0,0.00017999,2]
[405348416,1771038639509,-500.0,0.00017999,2]
[405348418,1771038639518,-210.51316536,0.00017999,2]
[405348420,1771038639527,-500.0,0.00017999,2]
[405348422,1771038639536,-500.0,0.00017999,2]
[405348423,1771038639546,-500.0,0.00017999,2]
[405348425,1771038639555,-500.0,0.00017999,2]
[405348427,1771038639564,-500.0,0.00017999,2]
[405348429,1771038639573,-500.0,0.00017999,2]
[405348431,1771038639583,-500.0,0.00017999,2]
[405348433,1771038639592,-500.0,0.00017999,2]
[405348435,1771038639601,-500.0,0.00017999,2]
[405348437,1771038639610,-500.0,0.00017999,2]
[405348439,1771038639619,-500.0,0.00017999,2]
[405348441,1771038639628,-500.0,0.00017999,2]
[405348442,1771038639638,-500.0,0.00017999,2]
[405348444,1771038639648,-500.0,0.00017999,2]
[405348446,1771038639657,-500.0,0.00017999,2]
[405348448,1771038639666,-500.0,0.00017999,2]
[405348450,1771038639675,-500.0,0.00017999,2]
[405348452,1771038639685,-500.0,0.00017999,2]
[405348454,1771038639694,-221.58599646,0.00017999,2]
[405348456,1771038639704,-3810.0,0.00018,2]
[405348458,1771038639713,-857154.46825282,0.00018,2]
[405348491,1771038640305,-820.4318335,0.00018,2]
[405348492,1771038640517,-504.38,0.00018,2]